[Event "*** Titled Tuesday Blitz"]
[Site "Chess.com"]
[Date "2018.10.02"]
[Round "4"]
[White "PowerThinking2650"]
[Black "kharov2001"]
[Result "0-1"]
[WhiteElo "2323"]
[BlackElo "2188"]
[TimeControl "180+2"]
[EndTime "13:50:18 PDT"]
[Termination "kharov2001 won by resignation"]

1. e4 {[%clk 0:03:01.9]} 1... c5 {[%clk 0:02:57.4]} 2. Nf3 {[%clk 0:03:01.3]}
2... g6 {[%clk 0:02:57.6]} 3. d4 {[%clk 0:03:02.1]} 3... cxd4 {[%clk 0:02:58]}
4. Nxd4 {[%clk 0:03:04]} 4... Nc6 {[%clk 0:02:56.9]} 5. c4 {[%clk 0:03:03.9]}
5... Bg7 {[%clk 0:02:56.6]} 6. Be3 {[%clk 0:03:03.7]} 6... Nf6 {[%clk
0:02:57.8]} 7. Nc3 {[%clk 0:03:04.8]} 7... d6 {[%clk 0:02:58.5]} 8. Be2 {[%clk
0:03:05.3]} 8... O-O {[%clk 0:02:58.2]} 9. O-O {[%clk 0:03:06.2]} 9... Bd7
{[%clk 0:02:58.2]} 10. f3 {[%clk 0:02:52.4]} 10... Qb6 {[%clk 0:02:42.2]} 11.
Na4 {[%clk 0:02:45.6]} 11... Qa5 {[%clk 0:02:42.6]} 12. Nc3 {[%clk 0:02:20.1]}
12... Rfc8 {[%clk 0:02:38.5]} 13. a3 {[%clk 0:02:18.7]} 13... Ne5 {[%clk
0:02:34.6]} 14. b4 {[%clk 0:02:18.6]} 14... Qd8 {[%clk 0:02:34.2]} 15. Qb3
{[%clk 0:02:16]} 15... a6 {[%clk 0:02:25.5]} 16. Rfc1 {[%clk 0:02:09.9]} 16...
h5 {[%clk 0:02:19.3]} 17. Nd5 {[%clk 0:02:09.6]} 17... Nxd5 {[%clk 0:02:15.9]}
18. cxd5 {[%clk 0:02:11.5]} 18... Kh7 {[%clk 0:02:08.8]} 19. a4 {[%clk
0:02:03.4]} 19... Qh8 {[%clk 0:01:48.3]} 20. Qd1 {[%clk 0:01:51.3]} 20... Rxc1
{[%clk 0:01:37.2]} 21. Rxc1 {[%clk 0:01:51.5]} 21... Rc8 {[%clk 0:01:35.9]} 22.
h3 {[%clk 0:01:45.1]} 22... Rxc1 {[%clk 0:01:34.8]} 23. Qxc1 {[%clk 0:01:44]}
23... Bxa4 {[%clk 0:01:31.9]} 24. Qc7 {[%clk 0:01:41.1]} 24... Ng4 {[%clk
0:01:30.9]} 25. hxg4 {[%clk 0:01:34.8]} 25... Bxd4 {[%clk 0:01:29.9]} 26. Kf2
{[%clk 0:01:33.7]} 26... hxg4 {[%clk 0:01:01.6]} 27. fxg4 {[%clk 0:01:28.2]}
27... Qf6+ {[%clk 0:00:56.9]} 28. Bf3 {[%clk 0:01:28.1]} 28... b5 {[%clk
0:00:45.4]} 29. Qc6 {[%clk 0:01:10.5]} 29... Qh4+ {[%clk 0:00:44]} 30. Ke2
{[%clk 0:01:06.1]} 30... Bxe3 {[%clk 0:00:42.3]} 31. Kxe3 {[%clk 0:01:06.8]}
31... Qe1+ {[%clk 0:00:42.7]} 32. Kf4 {[%clk 0:01:06.5]} 32... f6 {[%clk
0:00:38.9]} 33. g5 {[%clk 0:00:44.6]} 33... Qd2+ {[%clk 0:00:36.7]} 34. Kg3
{[%clk 0:00:43.6]} 34... Qxg5+ {[%clk 0:00:37.5]} 35. Kh2 {[%clk 0:00:41.7]}
35... Qe5+ {[%clk 0:00:37.7]} 36. Kh1 {[%clk 0:00:39.7]} 36... Qa1+ {[%clk
0:00:37.2]} 37. Kh2 {[%clk 0:00:40]} 37... Qe5+ {[%clk 0:00:38.1]} 38. Kh1
{[%clk 0:00:40.4]} 38... g5 {[%clk 0:00:35.9]} 39. Qe8 {[%clk 0:00:34]} 39... g4
{[%clk 0:00:32.9]} 40. Qf7+ {[%clk 0:00:29.2]} 40... Kh6 {[%clk 0:00:31.8]} 41.
Qf8+ {[%clk 0:00:29]} 41... Kg5 {[%clk 0:00:31]} 42. Qg7+ {[%clk 0:00:26.4]}
42... Kf4 {[%clk 0:00:31.4]} 43. Qxg4+ {[%clk 0:00:22.9]} 43... Ke3 {[%clk
0:00:32.2]} 44. Qh4 {[%clk 0:00:19.8]} 44... Qa1+ {[%clk 0:00:28.4]} 45. Kh2
{[%clk 0:00:20.6]} 45... Bc2 {[%clk 0:00:23.5]} 46. Qh6+ {[%clk 0:00:16.8]}
46... Kd3 {[%clk 0:00:23.3]} 47. Qh7 {[%clk 0:00:17]} 47... Qe5+ {[%clk
0:00:23.6]} 48. Kh3 {[%clk 0:00:17.1]} 48... Kd4 {[%clk 0:00:22.7]} 49. Qh6
{[%clk 0:00:14.8]} 49... Kc4 {[%clk 0:00:20.7]} 50. Qc1 {[%clk 0:00:14.3]} 50...
Qc3 {[%clk 0:00:20.4]} 51. Kg4 {[%clk 0:00:11]} 51... Kxb4 {[%clk 0:00:20.6]}
52. Kf5 {[%clk 0:00:08.8]} 52... a5 {[%clk 0:00:21]} 53. Ke6 {[%clk 0:00:09.2]}
53... a4 {[%clk 0:00:21.4]} 54. Kxe7 {[%clk 0:00:09.2]} 54... a3 {[%clk
0:00:22.3]} 55. Kxd6 {[%clk 0:00:09.3]} 55... a2 {[%clk 0:00:23]} 56. Kd7 {[%clk
0:00:05]} 56... a1=Q {[%clk 0:00:23.7]} 57. Qxa1 {[%clk 0:00:06.9]} 57... Qxa1
{[%clk 0:00:23.7]} 58. d6 {[%clk 0:00:08.8]} 58... Qe5 {[%clk 0:00:22.8]} 59.
Kc6 {[%clk 0:00:08.7]} 59... Qc5+ {[%clk 0:00:21.8]} 0-1

[Event "*** Titled Tuesday Blitz"]
[Site "Chess.com"]
[Date "2018.10.02"]
[Round "4"]
[White "2165149677570"]
[Black "Alex_Terzi"]
[Result "0-1"]
[WhiteElo "2319"]
[BlackElo "2461"]
[TimeControl "180+2"]
[EndTime "13:50:19 PDT"]
[Termination "Alex_Terzi won by checkmate"]

1. d4 {[%clk 0:03:01.9]} 1... Nf6 {[%clk 0:03:00.3]} 2. c4 {[%clk 0:03:03.2]}
2... g6 {[%clk 0:03:00.9]} 3. f3 {[%clk 0:03:04.2]} 3... Bg7 {[%clk 0:03:01.5]}
4. e4 {[%clk 0:03:05.4]} 4... d6 {[%clk 0:03:02.8]} 5. Nc3 {[%clk 0:03:06.2]}
5... O-O {[%clk 0:03:03.8]} 6. Nge2 {[%clk 0:03:06.8]} 6... c5 {[%clk
0:03:03.8]} 7. d5 {[%clk 0:03:07.8]} 7... e6 {[%clk 0:03:04.4]} 8. Ng3 {[%clk
0:03:09.4]} 8... a6 {[%clk 0:03:03.8]} 9. a4 {[%clk 0:03:05.6]} 9... exd5 {[%clk
0:02:58.1]} 10. cxd5 {[%clk 0:03:06.4]} 10... Nbd7 {[%clk 0:02:57.8]} 11. Be2
{[%clk 0:03:05.7]} 11... Rb8 {[%clk 0:02:55.4]} 12. O-O {[%clk 0:03:04.6]} 12...
Ne8 {[%clk 0:02:56.4]} 13. Be3 {[%clk 0:02:58.6]} 13... b6 {[%clk 0:02:55.5]}
14. Qd2 {[%clk 0:02:51.1]} 14... Nc7 {[%clk 0:02:55.3]} 15. Bh6 {[%clk
0:02:42.2]} 15... Qf6 {[%clk 0:02:55.6]} 16. Bxg7 {[%clk 0:02:41.2]} 16... Qxg7
{[%clk 0:02:56.7]} 17. Rab1 {[%clk 0:02:15.5]} 17... b5 {[%clk 0:02:54.1]} 18.
axb5 {[%clk 0:02:14.8]} 18... axb5 {[%clk 0:02:56]} 19. b4 {[%clk 0:02:16.2]}
19... c4 {[%clk 0:02:39.5]} 20. Bd1 {[%clk 0:02:15]} 20... Nb6 {[%clk
0:02:30.4]} 21. Nge2 {[%clk 0:02:12.8]} 21... Bd7 {[%clk 0:02:28.1]} 22. Nd4
{[%clk 0:02:12.7]} 22... Ra8 {[%clk 0:02:29]} 23. Bc2 {[%clk 0:02:11.4]} 23...
Ra3 {[%clk 0:02:28.5]} 24. Rfe1 {[%clk 0:01:39.4]} 24... Rfa8 {[%clk 0:02:27.1]}
25. f4 {[%clk 0:01:37.1]} 25... Re8 {[%clk 0:02:23.1]} 26. Ra1 {[%clk
0:01:29.9]} 26... Rea8 {[%clk 0:02:06]} 27. Rab1 {[%clk 0:01:14.7]} 27... Re8
{[%clk 0:01:45.2]} 28. Ra1 {[%clk 0:01:02.1]} 28... Rea8 {[%clk 0:01:45.2]} 29.
Rxa3 {[%clk 0:00:47.9]} 29... Rxa3 {[%clk 0:01:44.9]} 30. Bd1 {[%clk 0:00:49.4]}
30... f5 {[%clk 0:01:38.6]} 31. e5 {[%clk 0:00:46.7]} 31... Nbxd5 {[%clk
0:01:34.9]} 32. Nxd5 {[%clk 0:00:44.7]} 32... Nxd5 {[%clk 0:01:35.9]} 33. Bf3
{[%clk 0:00:42.4]} 33... Rd3 {[%clk 0:01:35.3]} 34. Bxd5+ {[%clk 0:00:41.2]}
34... Kh8 {[%clk 0:01:35.9]} 35. Qf2 {[%clk 0:00:41.3]} 35... dxe5 {[%clk
0:01:26.5]} 36. fxe5 {[%clk 0:00:30.8]} 36... Qe7 {[%clk 0:01:27.2]} 37. Nc2
{[%clk 0:00:25.7]} 37... Rxd5 {[%clk 0:01:25.4]} 38. Qf4 {[%clk 0:00:26]} 38...
Rd3 {[%clk 0:01:18.4]} 39. e6 {[%clk 0:00:24.6]} 39... Be8 {[%clk 0:01:17]} 40.
Qe5+ {[%clk 0:00:24.3]} 40... Kg8 {[%clk 0:01:17.4]} 41. Kh1 {[%clk 0:00:19.1]}
41... Qd6 {[%clk 0:01:05.5]} 42. Qf6 {[%clk 0:00:05.5]} 42... Rd1 {[%clk
0:01:03.4]} 43. h3 {[%clk 0:00:03.7]} 43... Rxe1+ {[%clk 0:01:03.3]} 44. Nxe1
{[%clk 0:00:05.6]} 44... Qd1 {[%clk 0:01:02.5]} 45. Qe7 {[%clk 0:00:04.1]} 45...
Qxe1+ {[%clk 0:01:01.8]} 46. Kh2 {[%clk 0:00:05.6]} 46... Qe5+ {[%clk
0:01:02.5]} 47. Kh1 {[%clk 0:00:07.1]} 47... Qb8 {[%clk 0:01:02.5]} 48. Kg1
{[%clk 0:00:07.6]} 48... Qc8 {[%clk 0:00:58]} 49. Kh2 {[%clk 0:00:08.3]} 49...
Qc6 {[%clk 0:00:54.2]} 50. h4 {[%clk 0:00:09.1]} 50... c3 {[%clk 0:00:54.7]} 51.
h5 {[%clk 0:00:09.6]} 51... gxh5 {[%clk 0:00:47.3]} 52. Qg5+ {[%clk 0:00:10.3]}
52... Bg6 {[%clk 0:00:47.6]} 53. Qd8+ {[%clk 0:00:10.9]} 53... Qe8 {[%clk
0:00:40.1]} 54. Qc7 {[%clk 0:00:09]} 54... Qxe6 {[%clk 0:00:39.1]} 55. Qxc3
{[%clk 0:00:10.3]} 55... Qc4 {[%clk 0:00:38.5]} 56. Qd2 {[%clk 0:00:09]} 56...
h4 {[%clk 0:00:32.9]} 57. Qd8+ {[%clk 0:00:09.3]} 57... Kg7 {[%clk 0:00:33.9]}
58. Qe7+ {[%clk 0:00:10.8]} 58... Kh6 {[%clk 0:00:34.7]} 59. Qf8+ {[%clk
0:00:11.9]} 59... Kh5 {[%clk 0:00:34.2]} 60. Qd6 {[%clk 0:00:13.5]} 60... Qg4
{[%clk 0:00:30.9]} 61. Qd2 {[%clk 0:00:11.7]} 61... Qg3+ {[%clk 0:00:30.1]} 62.
Kg1 {[%clk 0:00:12.4]} 62... f4 {[%clk 0:00:27.6]} 63. Qd5+ {[%clk 0:00:13.1]}
63... Qg5 {[%clk 0:00:28.2]} 64. Qd1+ {[%clk 0:00:14.6]} 64... Kh6 {[%clk
0:00:29]} 65. Qf3 {[%clk 0:00:16.1]} 65... Qe5 {[%clk 0:00:25.6]} 66. Kh2 {[%clk
0:00:16.3]} 66... Be4 {[%clk 0:00:24.3]} 67. Qg4 {[%clk 0:00:13.7]} 67... f3+
{[%clk 0:00:25.3]} 68. Kh3 {[%clk 0:00:12.5]} 68... Bf5 {[%clk 0:00:24.9]} 69.
Kxh4 {[%clk 0:00:10.9]} 69... Bxg4 {[%clk 0:00:25.5]} 70. g3 {[%clk 0:00:12.4]}
70... f2 {[%clk 0:00:25.4]} 71. Kxg4 {[%clk 0:00:13.3]} 71... f1=Q {[%clk
0:00:26.6]} 72. Kh4 {[%clk 0:00:15.2]} 72... Qg5# {[%clk 0:00:25.3]} 0-1

[Event "*** Titled Tuesday Blitz"]
[Site "Chess.com"]
[Date "2018.10.02"]
[Round "4"]
[White "MFBerna"]
[Black "ajkom197"]
[Result "1-0"]
[WhiteElo "2419"]
[BlackElo "2388"]
[TimeControl "180+2"]
[EndTime "13:50:22 PDT"]
[Termination "MFBerna won by resignation"]

1. e4 {[%clk 0:03:01.9]} 1... c6 {[%clk 0:03:00.6]} 2. d4 {[%clk 0:03:00.9]}
2... d5 {[%clk 0:03:01.3]} 3. exd5 {[%clk 0:03:02.8]} 3... cxd5 {[%clk
0:03:02.1]} 4. Bd3 {[%clk 0:03:04.4]} 4... Nc6 {[%clk 0:03:03]} 5. c3 {[%clk
0:03:05.9]} 5... Nf6 {[%clk 0:03:02.6]} 6. h3 {[%clk 0:03:07]} 6... e5 {[%clk
0:03:03.5]} 7. dxe5 {[%clk 0:03:07.4]} 7... Nxe5 {[%clk 0:03:04.9]} 8. Bb5+
{[%clk 0:03:08]} 8... Bd7 {[%clk 0:03:05.7]} 9. Bxd7+ {[%clk 0:03:08.5]} 9...
Qxd7 {[%clk 0:03:05.3]} 10. Nf3 {[%clk 0:03:05.4]} 10... Nc6 {[%clk 0:02:59.5]}
11. O-O {[%clk 0:03:02.1]} 11... Be7 {[%clk 0:03:00.4]} 12. Bf4 {[%clk 0:02:59]}
12... O-O {[%clk 0:03:00.3]} 13. Nbd2 {[%clk 0:02:55.9]} 13... Rfe8 {[%clk
0:03:00.6]} 14. Nb3 {[%clk 0:02:54.2]} 14... Qf5 {[%clk 0:02:58.2]} 15. Be3
{[%clk 0:02:47.7]} 15... Rad8 {[%clk 0:02:58.1]} 16. Nfd4 {[%clk 0:02:42.9]}
16... Qc8 {[%clk 0:02:54.6]} 17. Re1 {[%clk 0:02:27.9]} 17... Ne4 {[%clk
0:02:49.4]} 18. Qg4 {[%clk 0:02:15.1]} 18... Qxg4 {[%clk 0:02:46.5]} 19. hxg4
{[%clk 0:02:17]} 19... Nxd4 {[%clk 0:02:45.4]} 20. Nxd4 {[%clk 0:02:11.7]} 20...
a6 {[%clk 0:02:43.2]} 21. f3 {[%clk 0:02:12.6]} 21... Nd6 {[%clk 0:02:43.2]} 22.
Rad1 {[%clk 0:02:12.5]} 22... Nc4 {[%clk 0:02:42.6]} 23. Bc1 {[%clk 0:02:12.2]}
23... Bc5 {[%clk 0:02:43.5]} 24. Rxe8+ {[%clk 0:02:04.7]} 24... Rxe8 {[%clk
0:02:43.4]} 25. Kf2 {[%clk 0:02:03.1]} 25... Nd6 {[%clk 0:02:37]} 26. Be3 {[%clk
0:01:55]} 26... Nc4 {[%clk 0:02:23.8]} 27. Bc1 {[%clk 0:01:56.1]} 27... g6
{[%clk 0:02:03.8]} 28. b3 {[%clk 0:01:53.6]} 28... Nd6 {[%clk 0:02:03]} 29. Be3
{[%clk 0:01:51.5]} 29... Nb5 {[%clk 0:02:01.6]} 30. Rd3 {[%clk 0:01:48.4]} 30...
Nc7 {[%clk 0:01:18]} 31. b4 {[%clk 0:01:32.2]} 31... Ba7 {[%clk 0:01:10.8]} 32.
Ne2 {[%clk 0:01:04.8]} 32... Bxe3+ {[%clk 0:01:01.2]} 33. Rxe3 {[%clk
0:01:06.7]} 33... Rxe3 {[%clk 0:01:01.9]} 34. Kxe3 {[%clk 0:01:08.6]} 34... Kf8
{[%clk 0:00:48.1]} 35. Kd4 {[%clk 0:01:05.7]} 35... Ke7 {[%clk 0:00:49.3]} 36.
Kc5 {[%clk 0:01:03.2]} 36... Kd7 {[%clk 0:00:49.3]} 37. Kb6 {[%clk 0:00:42.5]}
37... Kc8 {[%clk 0:00:42.4]} 38. Kc5 {[%clk 0:00:32.4]} 38... Kd7 {[%clk
0:00:42.7]} 39. Kb6 {[%clk 0:00:28.8]} 39... Kc8 {[%clk 0:00:43.3]} 40. Nf4
{[%clk 0:00:30.2]} 40... g5 {[%clk 0:00:38.2]} 41. Nd3 {[%clk 0:00:31.2]} 41...
Nb5 {[%clk 0:00:36.4]} 42. Nc5 {[%clk 0:00:19.9]} 42... Nxc3 {[%clk 0:00:36.6]}
43. Nxb7 {[%clk 0:00:21.2]} 43... d4 {[%clk 0:00:34.8]} 44. Nc5 {[%clk 0:00:19]}
44... Nxa2 {[%clk 0:00:30.2]} 45. Nd3 {[%clk 0:00:18.4]} 45... Nc3 {[%clk
0:00:20.5]} 46. Kxa6 {[%clk 0:00:18.3]} 46... Kc7 {[%clk 0:00:22.1]} 47. b5
{[%clk 0:00:15.4]} 47... Nd5 {[%clk 0:00:22.9]} 48. Ka7 {[%clk 0:00:14.5]} 48...
h6 {[%clk 0:00:13.3]} 49. Ne5 {[%clk 0:00:12.5]} 49... f6 {[%clk 0:00:11.3]} 50.
Nd3 {[%clk 0:00:13.2]} 50... Kd6 {[%clk 0:00:05.8]} 51. b6 {[%clk 0:00:12.1]}
51... Ne7 {[%clk 0:00:04.4]} 52. b7 {[%clk 0:00:11.7]} 52... Kd5 {[%clk
0:00:05.9]} 53. Kb6 {[%clk 0:00:09.9]} 53... Nc6 {[%clk 0:00:06.3]} 54. Nb4+
{[%clk 0:00:10]} 54... Nxb4 {[%clk 0:00:07.7]} 55. b8=Q {[%clk 0:00:11.3]} 55...
Kc4 {[%clk 0:00:09.1]} 56. Qc8+ {[%clk 0:00:07.5]} 56... Kd3 {[%clk 0:00:09.3]}
57. Kc5 {[%clk 0:00:07.5]} 57... Nc2 {[%clk 0:00:09.3]} 58. Qf5+ {[%clk
0:00:07.6]} 58... Kd2 {[%clk 0:00:10.3]} 59. Qe4 {[%clk 0:00:07.6]} 59... d3
{[%clk 0:00:11.1]} 60. Kc4 {[%clk 0:00:08]} 60... Na3+ {[%clk 0:00:12.2]} 61.
Kb3 {[%clk 0:00:08.5]} 61... Nc2 {[%clk 0:00:13.6]} 62. f4 {[%clk 0:00:06.4]}
62... Ne1 {[%clk 0:00:12.5]} 63. fxg5 {[%clk 0:00:04]} 63... hxg5 {[%clk
0:00:13.8]} 64. Kc4 {[%clk 0:00:05.2]} 64... Nc2 {[%clk 0:00:13.5]} 65. Qxd3+
{[%clk 0:00:05.3]} 65... Kc1 {[%clk 0:00:14.1]} 66. Kc3 {[%clk 0:00:05.6]} 66...
Ne1 {[%clk 0:00:13.3]} 67. Qd2+ {[%clk 0:00:06.4]} 1-0

[Event "*** Titled Tuesday Blitz"]
[Site "Chess.com"]
[Date "2018.10.02"]
[Round "4"]
[White "raviteja81293"]
[Black "DanielNaroditsky"]
[Result "0-1"]
[WhiteElo "2569"]
[BlackElo "2966"]
[TimeControl "180+2"]
[EndTime "13:50:30 PDT"]
[Termination "DanielNaroditsky won by resignation"]

1. d4 {[%clk 0:02:38.4]} 1... Nf6 {[%clk 0:03:00.8]} 2. Nf3 {[%clk 0:02:39.7]}
2... g6 {[%clk 0:03:02.3]} 3. Nc3 {[%clk 0:02:40.2]} 3... d5 {[%clk 0:03:02.9]}
4. Bf4 {[%clk 0:02:41]} 4... Bg7 {[%clk 0:03:04.2]} 5. e3 {[%clk 0:02:41.9]}
5... c6 {[%clk 0:03:03]} 6. Be2 {[%clk 0:02:42.6]} 6... O-O {[%clk 0:03:01.9]}
7. Ne5 {[%clk 0:02:44.1]} 7... Nbd7 {[%clk 0:02:55.3]} 8. h4 {[%clk 0:02:44]}
8... h5 {[%clk 0:02:56.2]} 9. f3 {[%clk 0:02:43.4]} 9... Nxe5 {[%clk 0:02:39.2]}
10. Bxe5 {[%clk 0:02:43.7]} 10... Bh6 {[%clk 0:02:40.5]} 11. Qd2 {[%clk
0:02:33.6]} 11... Nd7 {[%clk 0:02:39.7]} 12. Bf4 {[%clk 0:02:33.9]} 12... Bg7
{[%clk 0:02:33.2]} 13. e4 {[%clk 0:02:13.3]} 13... e5 {[%clk 0:02:05.6]} 14.
dxe5 {[%clk 0:02:12.8]} 14... Nxe5 {[%clk 0:02:07.5]} 15. exd5 {[%clk
0:02:11.7]} 15... Re8 {[%clk 0:02:04.2]} 16. dxc6 {[%clk 0:02:01.3]} 16... Qb6
{[%clk 0:01:57.3]} 17. Nd5 {[%clk 0:01:34.3]} 17... Qxb2 {[%clk 0:01:48.6]} 18.
O-O {[%clk 0:01:33]} 18... Nxc6 {[%clk 0:01:16.8]} 19. Nc7 {[%clk 0:01:22.2]}
19... Qd4+ {[%clk 0:01:13.3]} 20. Qxd4 {[%clk 0:00:57.6]} 20... Bxd4+ {[%clk
0:01:15.2]} 21. Kh2 {[%clk 0:00:57.9]} 21... Rxe2 {[%clk 0:01:16.6]} 22. Rae1
{[%clk 0:00:42.5]} 22... Rxe1 {[%clk 0:00:57.5]} 23. Rxe1 {[%clk 0:00:42.1]}
23... Rb8 {[%clk 0:00:59.1]} 24. Re8+ {[%clk 0:00:34.7]} 24... Kg7 {[%clk
0:00:46.2]} 25. Nb5 {[%clk 0:00:28.5]} 25... Bd7 {[%clk 0:00:33.6]} 26. Rxb8
{[%clk 0:00:29.3]} 26... Nxb8 {[%clk 0:00:34.6]} 27. Nxd4 {[%clk 0:00:31]} 27...
Na6 {[%clk 0:00:34.7]} 28. Be5+ {[%clk 0:00:31.3]} 28... f6 {[%clk 0:00:33.7]}
29. Bd6 {[%clk 0:00:31.1]} 29... Kf7 {[%clk 0:00:35.4]} 30. Kg3 {[%clk
0:00:32.2]} 30... Be6 {[%clk 0:00:34.4]} 31. a3 {[%clk 0:00:31.8]} 31... Bc4
{[%clk 0:00:33.1]} 32. Kf4 {[%clk 0:00:32.1]} 32... Bd5 {[%clk 0:00:33.1]} 33.
g4 {[%clk 0:00:32.9]} 33... Bc4 {[%clk 0:00:28.7]} 34. gxh5 {[%clk 0:00:33.8]}
34... gxh5 {[%clk 0:00:30.6]} 35. Ke3 {[%clk 0:00:34.7]} 35... Bd5 {[%clk
0:00:26.7]} 36. c3 {[%clk 0:00:33]} 36... Bc4 {[%clk 0:00:27.4]} 37. Ke4 {[%clk
0:00:33.9]} 37... Be6 {[%clk 0:00:26.3]} 38. Nb5 {[%clk 0:00:31.7]} 38... Bd7
{[%clk 0:00:24.3]} 39. Nxa7 {[%clk 0:00:31.7]} 39... Ke6 {[%clk 0:00:25.7]} 40.
Bb4 {[%clk 0:00:32.2]} 40... Nc7 {[%clk 0:00:24.8]} 41. Bc5 {[%clk 0:00:30.7]}
41... Nd5 {[%clk 0:00:21.2]} 42. Bd4 {[%clk 0:00:32.2]} 42... b5 {[%clk
0:00:18.4]} 43. f4 {[%clk 0:00:29.8]} 43... Ne7 {[%clk 0:00:15.4]} 44. Bf2
{[%clk 0:00:27.8]} 44... Nf5 {[%clk 0:00:16.9]} 45. Kd3 {[%clk 0:00:27]} 45...
Kd5 {[%clk 0:00:17.5]} 46. c4+ {[%clk 0:00:20.3]} 46... bxc4+ {[%clk 0:00:18.4]}
47. Kc3 {[%clk 0:00:21.8]} 47... Nd6 {[%clk 0:00:20.3]} 48. Kb4 {[%clk
0:00:21.8]} 48... Ne4 {[%clk 0:00:20.2]} 49. Be3 {[%clk 0:00:23.4]} 49... c3
{[%clk 0:00:17.7]} 50. Nb5 {[%clk 0:00:24]} 50... Bxb5 {[%clk 0:00:07.3]} 51.
Kxb5 {[%clk 0:00:25.6]} 51... c2 {[%clk 0:00:09.2]} 52. Kb4 {[%clk 0:00:25.8]}
52... Ng3 {[%clk 0:00:06.3]} 53. Kc3 {[%clk 0:00:26.9]} 53... Nf5 {[%clk
0:00:06.7]} 54. Bd2 {[%clk 0:00:28.4]} 54... Nxh4 {[%clk 0:00:08.6]} 55. Kxc2
{[%clk 0:00:29.8]} 55... Nf3 {[%clk 0:00:10.3]} 56. Be3 {[%clk 0:00:22.8]} 56...
h4 {[%clk 0:00:08.2]} 57. Bf2 {[%clk 0:00:22.8]} 57... h3 {[%clk 0:00:09.6]} 58.
Bg3 {[%clk 0:00:24.3]} 58... Ke4 {[%clk 0:00:09.3]} 59. a4 {[%clk 0:00:25.1]}
59... Nd4+ {[%clk 0:00:08.8]} 60. Kd2 {[%clk 0:00:25.3]} 60... Kf3 {[%clk
0:00:07.2]} 61. Bh2 {[%clk 0:00:25.1]} 61... Kg2 {[%clk 0:00:08.5]} 62. Ke3
{[%clk 0:00:26.6]} 62... Kxh2 {[%clk 0:00:06.2]} 63. Kf2 {[%clk 0:00:28.2]}
63... Nc6 {[%clk 0:00:05.6]} 64. f5 {[%clk 0:00:28.5]} 64... Na5 {[%clk
0:00:06.3]} 65. Kf1 {[%clk 0:00:28.1]} 65... Kg3 {[%clk 0:00:07.9]} 66. Kg1
{[%clk 0:00:29.6]} 66... Kf4 {[%clk 0:00:04.7]} 67. Kh2 {[%clk 0:00:31.3]} 67...
Kxf5 {[%clk 0:00:06.6]} 68. Kxh3 {[%clk 0:00:32.9]} 68... Ke4 {[%clk 0:00:08.5]}
69. Kg4 {[%clk 0:00:34.3]} 69... f5+ {[%clk 0:00:09.8]} 70. Kg3 {[%clk
0:00:35.9]} 70... Ke3 {[%clk 0:00:11.1]} 71. Kg2 {[%clk 0:00:37.6]} 71... f4
{[%clk 0:00:12.8]} 72. Kf1 {[%clk 0:00:39.2]} 72... Kf3 {[%clk 0:00:14.1]} 73.
Ke1 {[%clk 0:00:40.8]} 73... Kg2 {[%clk 0:00:15.3]} 74. Kd2 {[%clk 0:00:42.5]}
74... f3 {[%clk 0:00:17.2]} 0-1